[Event "57th Biel Festival MTO 2024"]
[White "Ganguly,Surya Shekhar"]
[Black "Chinguun,Sumiya"]
[Site "Biel"]
[Round "2.4"]
[Annotator "TA"]
[Result "1-0"]
[Date "2024.07.16"]
[WhiteElo "2575"]
[BlackElo "2348"]
[PlyCount "119"]
[TimeControl "60"]

{[%evp 16,119,6,5,0,-19,-26,-35,32,43,34,25,20,23,22,20,22,31,23,12,16,28,36,46,43,-6,0,-6,0,-16,-14,-14,-7,-14,-10,-6,-6,-6,0,0,0,0,0,0,2,0,0,17,15,0,0,0,0,0,0,0,10,6,45,8,0,1,29,38,74,74,128,134,86,60,60,58,126,126,164,156,263,265,282,276,282,264,284,285,978,972,972,980,671,782,1246,1018,722,669,592,543,29972,29973,29972,29973,29968,1537,29973,29974,29973,29974]} 1. c4 {[%emt 0:0:8]} c5 {[%emt 0:0:25]} 2. Nf3 {[%emt 0:0:13]} Nf6 {[%emt 0:0:40]} 3. Nc3 {[%emt 0:0:21]} Nc6 {[%emt 0:0:7]} 4. d4 {[%emt 0:0:14]} cxd4 {[%emt 0:0:12]} 5. Nxd4 {[%emt 0:0:6]} e6 {[%emt 0:0:27]} 6. g3 {[%emt 0:0:41]} Qb6 {[%emt 0:2:58]} 7. Ndb5 {[%emt 0:0:21]} Ne5 {[%emt 0:1:31]} 8. Bg2 {[%emt 0:0:15]} a6 {[%emt 0:0:47]} 9. Qa4 {[%emt 0:0:33] Threatens to win with Bf4.} Rb8 {[%emt 0:0:42]} 10. Na3 {[%emt 0:0:25]} h5 {[%emt 0:2:2]} 11. Qb3 {[%emt 0:23:37]} Qxb3 {[%emt 0:28:1]} (11... Qc7 $15 )12. axb3 $14 {[%emt 0:0:10]} Nc6 {[%emt 0:2:53]} 13. Be3 {[%emt 0:13:49] Dodges Nd4} b6 {[%emt 0:11:7]} 14. Bf4 {[%emt 0:7:43] Strongly threatening Bxc6.} e5 {[%emt 0:2:42]} 15. Bxc6 {[%emt 0:0:11]} exf4 {[%emt 0:0:5]} 16. Bf3 {[%emt 0:0:13]} fxg3 {[%emt 0:3:16]} 17. hxg3 {[%emt 0:0:8]} g6 {[%emt 0:7:22]} 18. Nc2 {[%emt 0:1:49]} b5 {[%emt 0:5:29]} 19. cxb5 {[%emt 0:1:27]} axb5 {[%emt 0:0:21]} 20. Nd4 {[%emt 0:0:35]} (20. b4 $14 )b4 $11 {[%emt 0:0:37]} 21. Ncb5 {[%emt 0:0:27]} Bc5 {[%emt 0:4:7]} 22. e3 {[%emt 0:8:13]} O-O {[%emt 0:4:13]} 23. O-O {[%emt 0:2:57]} d6 {[%emt 0:4:7]} 24. Rfd1 {[%emt 0:0:39]} Bd7 {[%emt 0:10:4]} 25. Nc7 {[%emt 0:1:42]} Rfc8 {[%emt 0:2:44]} 26. Nd5 {[%emt 0:0:17]} Nxd5 {[%emt 0:0:51]} 27. Bxd5 {[%emt 0:0:7]} Kf8 {[%emt 0:0:40]} 28. Rd2 {[%emt 0:3:28]} Ke7 {[%emt 0:2:44]} 29. Nf3 {[%emt 0:1:16]} Be6 {[%emt 0:1:38]} 30. Ng5 {[%emt 0:2:2]} Bxd5 {[%emt 0:2:3]} 31. Rxd5 {[%emt 0:0:6]} Ra8 {[%emt 0:0:49]} 32. Rad1 {[%emt 0:0:28]} Ra2 {[%emt 0:0:25]} 33. R1d2 {[%emt 0:0:24]} Ra1+ {[%emt 0:1:56]} 34. Kg2 {[%emt 0:0:6]} Rc1 {[%emt 0:1:37]} 35. Nh3 {[%emt 0:2:7]} Rc7 {[%emt 0:4:36]} 36. Nf4 {[%emt 0:0:15]} Rc8 {[%emt 0:0:53]} 37. Nd3 {[%emt 0:1:46]} Rb1 {[%emt 0:0:23]} 38. Rc2 {[%emt 0:0:8] next Nxb4 is good for White.} Ke6 {[%emt 0:1:40]} 39. e4 {[%emt 0:0:24]} f6 {[%emt 0:1:31]} 40. Nxb4 $1 {[%emt 0:8:56]} Rb8 {[%emt 0:1:14]} ({Black should play} 40... Re1 )41. Na6 $1 $16 {[%emt 0:53:43][%csl LRb8,LRc5]} Rb6 {[%emt 0:8:1]} 42. Nxc5+ {[%emt 0:0:0]} dxc5 {[%emt 0:0:5]} 43. Rdxc5 {[%emt 0:0:0][%cal Ob3b4][%mdl 4096] Endgame. KRR-KRR} (43. Rcxc5 Rxb2 44. Rd8 Ke7 $16 )g5 {[%emt 0:1:3] [#] Black is on the road to losing.} ({Black should try} 43... Rd1 $14 )44. e5 $1 {[%emt 0:0:0]} h4 {[%emt 0:11:49]} (44... Re1 45. exf6 )45. exf6 {[%emt 0:0:0] aiming for gxh4.} Kxf6 {[%emt 0:1:3] [#]} (45... hxg3 $16 {was worth a try.} 46. Rxg5 Kxf6 )46. g4 $1 $18 {[%emt 0:0:0]} Kg6 {[%emt 0:2:44]} 47. Rd2 {[%emt 0:0:0] Against Rd1} ({And not} 47. Rc6+ Rxc6 48. Rxc6+ Kg7 $11 )Rf6 {[%emt 0:0:56]} 48. b4 {[%emt 0:0:0][%cal Bb3b4,Bb4b5,Bb5b6,Bb6b7][%mdl 32]} Rf4 {[%emt 0:2:39]} 49. Rc6+ {[%emt 0:0:0]} Rf6 $2 {[%emt 0:0:58]} (49... Kg7 50. b5 Rxg4+ 51. Kh2 Rf4 )50. b5 {[%emt 0:0:0]} Re1 {[%emt 0:0:40]} 51. Rdd6 {[%emt 0:0:0]} Rxd6 {[%emt 0:0:6]} 52. Rxd6+ {[%emt 0:0:0] KR-KR} Kf7 {[%emt 0:0:22]} 53. Rd5 {[%emt 0:0:0]} Kg6 {[%emt 0:0:28]} 54. b6 {[%emt 0:0:0] White wants to mate with b7.} Re7 {[%emt 0:0:21]} 55. Rc5 {[%emt 0:1:43] Rc6+ would kill now.} Re4 {[%emt 0:0:21] [#]} 56. Rb5 $1 {[%emt 0:0:15]} Re8 {[%emt 0:0:5]} 57. b7 {[%emt 0:0:16]} Rb8 {[%emt 0:0:4]} 58. Rb6+ {[%emt 0:0:40]} (58. Kh3 $142 Kf7 59. f4 (59. Rxg5 Rxb7 60. f4 Kf8 $18 )gxf4 60. Kxh4 Ke7 61. g5 Kd6 62. g6 Ke6 63. Kg4 )Kg7 {[%emt 0:0:5]} 59. Kh3 {[%emt 0:0:57]} Kf7 {[%emt 0:0:13] [#]} 60. f4 $1 {[%emt 0:1:13] Weighted Error Value: White=0.07 (flawless) /Black=0.25 (precise) .  Mistake:       	White=1     	Black=5      Inaccurate:     	White=2     	Black=4      OK:         	White=14    	Black=12     Best:        	White=1     	Black=1      Strong:       	White=4     	---        Brilliant:      	White=1     	---} 1-0

[Event "57th Biel Festival MTO 2024"]
[White "Dotzer,Lukas"]
[Black "Sethuraman,S.P."]
[Site "Biel"]
[Round "2.5"]
[Annotator "TA"]
[Result "1-0"]
[Date "2024.07.16"]
[WhiteElo "2369"]
[BlackElo "2587"]
[PlyCount "53"]
[TimeControl "60"]

{[%evp 11,53,9,10,-3,3,0,0,8,0,14,8,3,35,14,54,25,44,37,59,20,25,32,26,31,9,6,20,-10,113,122,164,169,158,177,163,175,253,260,464,466,457,377,677,666]} 1. e4 {[%emt 0:0:3]} c5 {[%emt 0:0:34]} 2. Nf3 {[%emt 0:0:4]} d6 {[%emt 0:0:7]} 3. d4 {[%emt 0:0:5]} cxd4 {[%emt 0:0:7]} 4. Nxd4 {[%emt 0:0:7]} Nf6 {[%emt 0:0:5]} 5. Nc3 {[%emt 0:0:8]} a6 {[%emt 0:0:5]} 6. h3 {[%emt 0:0:6]} e5 {[%emt 0:2:3]} 7. Nf3 {[%emt 0:0:6][%cal Bd4f3,Bf3h2,Bh2g4][%mdl 32]} Qc7 {[%emt 0:0:40]} 8. a4 {[%emt 0:5:57]} Be7 {[%emt 0:1:28]} 9. Be2 {[%emt 0:3:24] The position is equal.} Nbd7 {[%emt 0:6:36]} 10. Nh2 {[%emt 0:7:52]} Nc5 {[%emt 0:3:15]} 11. Bf3 {[%emt 0:2:58]} Qc6 {[%emt 0:18:7][%cal Rf6e4]} 12. Qe2 {[%emt 0:4:17]} Be6 {[%emt 0:6:9]} 13. Ng4 {[%emt 0:7:54]} Ncd7 {[%emt 0:8:58]} 14. Ne3 {[%emt 0:6:38]} Bd8 {[%emt 0:0:29]} 15. Ncd5 {[%emt 0:14:13]} Bxd5 {[%emt 0:19:37]} 16. exd5 {[%emt 0:1:14]} Qc5 {[%emt 0:1:12]} 17. O-O {[%emt 0:10:26]} e4 {[%emt 0:6:39]} 18. Bg4 {[%emt 0:4:15]} Ne5 {[%emt 0:0:9][%cal Oh7h5]} 19. b4 {[%emt 0:11:4]} Qxb4 {[%emt 0:17:58]} (19... Qc7 $1 $11 {keeps the balance.} )20. Ba3 $16 {[%emt 0:1:27]} Qa5 {[%emt 0:0:36]} 21. Bxd6 {[%emt 0:1:51]} Bc7 {[%emt 0:0:4] [#]} 22. Ba3 $36 {[%emt 0:8:53][%mdl 2048] d6 is the strong threat. Black is under strong pressure. This pair of bishops is nice.} h5 {[%emt 0:4:1]} 23. Bf5 {[%emt 0:1:16] aiming for d6.} g6 {[%emt 0:0:7]} (23... Rd8 $142 )24. d6 $1 $18 {[%emt 0:3:19]} gxf5 $2 {[%emt 0:11:14]} (24... Bb6 )25. dxc7 {[%emt 0:0:18] Hoping for Rfd1.} Qxc7 {[%emt 0:1:9][%cal Of6g4]} 26. Nxf5 {[%emt 0:0:24]} Nc4 $2 {[%emt 0:1:18] [#]} (26... O-O-O 27. Rfd1 (27. Be7 Nf3+ 28. gxf3 Rhg8+ 29. Kh1 Qf4 $18 )Qc4 28. Nd6+ Rxd6 29. Qxc4+ Nxc4 30. Bxd6 Kd7 31. Be5+ Ke6 )27. Qxc4 $3 {[%emt 0:0:13][%mdl 512] Weighted Error Value: White=0.12 (very precise) /Black=0.53.  Mistake:       	---       	Black=4      Inaccurate:     	White=3     	Black=3      OK:         	White=8     	Black=4      Best:        	White=2     	Black=2      Strong:       	White=1     	---} 1-0

[Event "57th Biel Festival MTO 2024"]
[White "Sasikiran,Krishnan"]
[Black "Rosen,Eric"]
[Site "Biel"]
[Round "2.6"]
[Annotator "TA"]
[Result "1-0"]
[Date "2024.07.16"]
[WhiteElo "2581"]
[BlackElo "2361"]
[PlyCount "94"]
[TimeControl "60"]

{[%evp 21,94,26,23,12,20,25,22,18,17,32,17,23,19,12,14,22,58,32,55,59,90,95,107,95,120,101,95,79,120,55,156,154,339,224,210,169,185,183,173,169,181,185,185,188,188,186,375,230,306,159,179,183,306,314,328,266,700,699,1056,1010,6554,6231,12850,12844,29977,29978,29978,29979,29978,29979,29979,29980,29979,29980,29972]} 1. e4 {[%emt 0:0:4]} c5 {[%emt 0:0:28]} 2. Nf3 {[%emt 0:0:10]} Nc6 {[%emt 0:1:41]} 3. d4 {[%emt 0:0:44]} cxd4 {[%emt 0:0:11]} 4. Nxd4 {[%emt 0:0:7]} g6 {[%emt 0:0:35]} 5. Nc3 {[%emt 0:0:37]} Bg7 {[%emt 0:0:12]} 6. Be3 {[%emt 0:0:11]} Nf6 {[%emt 0:0:48]} 7. Bc4 {[%emt 0:0:28]} O-O {[%emt 0:0:42]} 8. Bb3 {[%emt 0:0:22]} d6 {[%emt 0:1:43]} 9. f3 {[%emt 0:4:12]} Qa5 {[%emt 0:0:25]} 10. O-O {[%emt 0:13:33]} Nxd4 {[%emt 0:5:9]} 11. Bxd4 {[%emt 0:0:24]} Be6 {[%emt 0:0:41]} 12. Rf2 {[%emt 0:7:26]} b5 {[%emt 0:9:13]} 13. Nd5 {[%emt 0:5:30]} Bxd5 {[%emt 0:11:53]} 14. exd5 {[%emt 0:1:52] The position is equal.} Nd7 {[%emt 0:9:46]} 15. Bxg7 {[%emt 0:8:2]} Kxg7 {[%emt 0:0:6]} 16. Qd4+ {[%emt 0:2:23]} Kg8 {[%emt 0:4:5]} 17. Re2 {[%emt 0:3:12][%cal Oc2c3]} Rfe8 {[%emt 0:1:54]} 18. Rae1 {[%emt 0:1:51][%cal Oc2c3]} Nc5 {[%emt 0:2:30]} 19. h4 {[%emt 0:5:54][%cal Bh2h4,Bh4h5][%mdl 32]} Rac8 {[%emt 0:8:30]} 20. c3 {[%emt 0:7:35]} (20. Rxe7 Qxe1+ 21. Rxe1 Rxe1+ 22. Kf2 Rce8 $11 )Nxb3 {[%emt 0:6:19]} 21. axb3 {[%emt 0:0:37]} Qc7 {[%emt 0:1:13]} 22. b4 {[%emt 0:9:28][%cal Oh4h5] White has more active pieces.} Qb7 {[%emt 0:6:20]} 23. h5 {[%emt 0:7:54]} Rc4 {[%emt 0:4:20]} 24. Qd2 $40 {[%emt 0:4:57][%mdl 128] White is out for blood.} Qb6+ {[%emt 0:2:17]} 25. Re3 {[%emt 0:4:1]} ({Better is} 25. Kf1 $16 )Rc7 {[%emt 0:8:53]} ({Avoid the trap} 25... Rh4 $2 26. g4 f5 27. hxg6 $18 (27. Qf2 Rh3 $16 ))(25... Rf4 $14 )26. Kh2 $16 {[%emt 0:4:25]} a5 $2 {[%emt 0:2:34] [#] Loses the game.} (26... Qb7 $16 27. Re4 Rc4 28. Rxc4 bxc4 )27. bxa5 {[%emt 0:1:51]} Qxa5 {[%emt 0:0:6]} 28. Re4 {[%emt 0:1:21] Hoping for Rh4.} Qa7 {[%emt 0:7:15]} 29. hxg6 {[%emt 0:7:59]} fxg6 {[%emt 0:4:2]} 30. Qg5 {[%emt 0:0:37]} e5 {[%emt 0:5:24]} 31. dxe6 {[%emt 0:1:49]} Rc5 {[%emt 0:0:21]} 32. Qe3 {[%emt 0:2:1]} Rh5+ {[%emt 0:1:42]} 33. Kg3 {[%emt 0:0:51][%cal Bh2g3,Bg3f2,Bf2g2][%mdl 32]} Qa2 {[%emt 0:4:33] [#]} (33... Qxe3 34. R1xe3 Kg7 )34. Qd2 {[%emt 0:2:20]} Rd5 {[%emt 0:0:39]} 35. Qe2 {[%emt 0:1:46]} (35. Qf4 $18 {Threatening mate with Qf7+.} Rf5 36. Qxd6 Qxb2 37. Re5 Rxe5 38. Qxe5 )Rg5+ {[%emt 0:0:26]} 36. Kf2 {[%emt 0:0:32]} Rf5 {[%emt 0:0:42]} (36... Rh5 $142 37. Rd1 Qa6 )37. g4 $18 {[%emt 0:1:32]} Rc5 {[%emt 0:0:43]} 38. e7 {[%emt 0:0:14]} Rc7 $2 {[%emt 0:0:20]} (38... Qf7 39. Kg3 g5 )39. Qxb5 {[%emt 0:0:30]} Qa7+ {[%emt 0:0:29]} 40. Kg2 {[%emt 0:0:21]} Rexe7 {[%emt 0:0:48]} 41. Qd5+ {[%emt 0:50:34]} Kg7 {[%emt 0:1:46][%cal Bg8g7,Bg7f6,Bf6e7,Be7e6,Be6d5][%mdl 32]} 42. Qd4+ {[%emt 0:0:0]} Qxd4 {[%emt 0:3:47]} 43. Rxe7+ {[%emt 0:0:0] White mates.} ({Stronger than} 43. cxd4 Rc2+ 44. Kg3 Rxe4 45. Rxe4 Rxb2 $11 )Rxe7 {[%emt 0:0:18]} 44. Rxe7+ {[%emt 0:0:0]} Kf6 {[%emt 0:0:4]} 45. cxd4 {[%emt 0:0:0]} Kxe7 {[%emt 0:0:4]} 46. f4 {[%emt 0:0:0]} Ke6 {[%emt 0:0:32]} 47. b4 {[%emt 0:0:0]} Kd5 {[%emt 0:0:14] Weighted Error Value: White=0.24 (precise) /Black=0.65.  Loses game:     	---       	Black=1      Mistake:       	White=2     	Black=4      Inaccurate:     	White=3     	Black=5      OK:         	White=11    	Black=6      Best:        	White=3     	Black=1} 1-0

[Event "57th Biel Festival MTO 2024"]
[White "Hafiz,Arif Abdul"]
[Black "Moiseenko,Alexander"]
[Site "Biel"]
[Round "2.7"]
[Annotator "RC"]
[Result "0-1"]
[Date "2024.07.16"]
[WhiteElo "2367"]
[BlackElo "2560"]
[PlyCount "122"]
[TimeControl "60"]

1. e4 {[%emt 0:0:5]} c5 {[%emt 0:0:5]} 2. Nc3 {[%emt 0:0:12]} e6 {[%emt 0:0:10]} 3. f4 {[%emt 0:3:38]} d5 {[%emt 0:0:25]} 4. d3 {[%emt 0:6:42]} Nc6 {[%emt 0:0:40]} 5. Nf3 {[%emt 0:0:9]} d4 {[%emt 0:1:13]} 6. Nb1 {[%emt 0:1:37]} Bd6 {[%emt 0:19:18]} 7. g3 {[%emt 0:2:58]} e5 {[%emt 0:3:43]} 8. Bg2 {[%emt 0:7:58]} exf4 {[%emt 0:3:7]} 9. gxf4 {[%emt 0:2:25]} Nge7 {[%emt 0:0:5]} 10. O-O {[%emt 0:4:24]} f5 {[%emt 0:0:54]} 11. e5 {[%emt 0:9:35]} Bc7 {[%emt 0:0:6]} 12. c4 {[%emt 0:3:35]} h6 {[%emt 0:10:13]} 13. Qe1 {[%emt 0:6:58]} O-O {[%emt 0:9:45]} 14. Na3 {[%emt 0:5:5]} a6 {[%emt 0:6:8]} 15. Nc2 {[%emt 0:9:16]} b5 {[%emt 0:1:36]} 16. b4 {[%emt 0:5:41]} bxc4 {[%emt 0:11:0]} 17. bxc5 {[%emt 0:2:20]} Ba5 {[%emt 0:6:3]} 18. Bd2 {[%emt 0:11:20]} c3 {[%emt 0:0:34]} 19. Bc1 {[%emt 0:0:12]} Be6 {[%emt 0:16:31]} 20. Qf2 {[%emt 0:4:28]} Bd5 {[%emt 0:0:5]} 21. Nfxd4 {[%emt 0:3:31]} Bxg2 {[%emt 0:0:33]} 22. Kxg2 {[%emt 0:0:6]} Rb8 {[%emt 0:6:14]} 23. Ba3 {[%emt 0:11:7]} Qd5+ {[%emt 0:3:50]} 24. Qf3 {[%emt 0:1:45]} Nxd4 {[%emt 0:1:41]} 25. Qxd5+ {[%emt 0:0:7]} Nxd5 {[%emt 0:0:1]} 26. Nxd4 {[%emt 0:0:8]} Bb4 {[%emt 0:0:8]} 27. Nc2 {[%emt 0:3:36]} Bxa3 {[%emt 0:0:52]} 28. Nxa3 {[%emt 0:0:1]} Rfc8 {[%emt 0:3:10]} 29. Nc4 {[%emt 0:1:28]} Rxc5 {[%emt 0:0:9]} 30. Kf3 {[%emt 0:1:22]} Rb4 {[%emt 0:2:28]} 31. Rab1 {[%emt 0:2:6]} g5 {[%emt 0:1:20]} 32. fxg5 {[%emt 0:0:49]} hxg5 {[%emt 0:0:1]} 33. Ke2 {[%emt 0:0:32]} f4 {[%emt 0:2:57]} 34. Kf3 {[%emt 0:1:11]} Kf7 {[%emt 0:0:24]} 35. a3 {[%emt 0:0:8]} Rxb1 {[%emt 0:0:48]} 36. Rxb1 {[%emt 0:0:1]} Ke6 {[%emt 0:0:7]} 37. h3 {[%emt 0:1:33]} Rb5 {[%emt 0:1:14]} 38. Rc1 {[%emt 0:0:2]} Rb8 {[%emt 0:0:59]} 39. Rg1 {[%emt 0:1:6]} Kf5 {[%emt 0:0:28]} 40. d4 {[%emt 0:0:27]} Rh8 {[%emt 0:0:45]} 41. Nd6+ {[%emt 0:50:20]} Ke6 {[%emt 0:50:27]} 42. Ne4 {[%emt 0:0:53]} c2 {[%emt 0:0:0]} 43. Ke2 {[%emt 0:0:0]} Kf5 {[%emt 0:0:0]} 44. Nd6+ {[%emt 0:0:0]} Kg6 {[%emt 0:0:0]} 45. Kd2 {[%emt 0:0:0]} Rxh3 {[%emt 0:0:0]} 46. Kxc2 {[%emt 0:0:0]} Re3 {[%emt 0:0:0]} 47. Kd2 {[%emt 0:0:0]} f3 {[%emt 0:0:0]} 48. Re1 {[%emt 0:0:0]} Rxa3 {[%emt 0:0:0]} 49. e6 {[%emt 0:0:0]} Ra2+ {[%emt 0:0:0]} 50. Kd3 {[%emt 0:0:0]} Nf4+ {[%emt 0:0:0]} 51. Kc3 {[%emt 0:0:46]} f2 {[%emt 0:0:0]} 52. Rf1 {[%emt 0:0:5]} Nxe6 {[%emt 0:0:0]} 53. Ne4 {[%emt 0:0:5]} Ra3+ {[%emt 0:0:0]} 54. Kd2 {[%emt 0:4:2]} Nxd4 {[%emt 0:0:0]} 55. Rxf2 {[%emt 0:0:26]} Ra2+ {[%emt 0:0:0]} 56. Kc3 {[%emt 0:0:24]} Nb5+ {[%emt 0:0:36]} 57. Kb4 {[%emt 0:0:4]} Rxf2 {[%emt 0:0:34]} 58. Nxf2 {[%emt 0:0:3]} Kf5 {[%emt 0:1:22]} 59. Ka5 {[%emt 0:0:36]} Nc7 {[%emt 0:0:7]} 60. Kb6 {[%emt 0:1:25]} g4 {[%emt 0:1:3]} 61. Kxc7 {[%emt 0:16:0]} a5 {[%emt 0:16:8]} 0-1

[Event "57th Biel Festival MTO 2024"]
[White "Harsha Bharathakoti"]
[Black "Narayanan,Samrug"]
[Site "Biel"]
[Round "2.8"]
[Annotator "TA"]
[Result "1-0"]
[Date "2024.07.16"]
[WhiteElo "2569"]
[BlackElo "2335"]
[PlyCount "87"]
[TimeControl "60"]

{[%evp 12,87,6,0,0,0,0,6,4,0,0,0,0,0,25,23,33,0,12,26,47,46,47,46,67,59,60,18,67,63,77,64,63,62,64,53,71,71,133,121,205,210,204,196,214,196,195,120,116,121,120,69,404,391,765,752,702,693,716,705,1489,1357,2100,2129,4922,4914,29983,29982,29983,29984,29986,29987,29990,29991,29991,29992,29992,1052]} 1. e4 {[%emt 0:1:42]} e5 {[%emt 0:0:7]} 2. Bc4 {[%emt 0:0:8]} Nf6 {[%emt 0:0:40]} 3. d3 {[%emt 0:0:6]} Nc6 {[%emt 0:0:30]} 4. Nc3 {[%emt 0:0:8]} Bc5 {[%emt 0:1:2]} 5. f4 {[%emt 0:8:27]} d6 {[%emt 0:3:56]} 6. Nf3 {[%emt 0:0:23]} a6 {[%emt 0:2:3]} 7. f5 {[%emt 0:18:19]} b5 {[%emt 0:14:13]} 8. Bb3 {[%emt 0:4:20]} Na5 {[%emt 0:11:44]} 9. Qe2 {[%emt 0:7:41]} Bb7 {[%emt 0:7:22] The position is equal.} 10. Bg5 {[%emt 0:6:5]} Nxb3 {[%emt 0:3:37]} 11. axb3 {[%emt 0:0:6]} c6 {[%emt 0:1:59]} 12. Be3 {[%emt 0:6:28]} Qb6 {[%emt 0:5:50]} 13. Bxc5 {[%emt 0:0:50]} Qxc5 {[%emt 0:0:5]} 14. O-O-O {[%emt 0:9:23]} O-O-O {[%emt 0:6:8] [#]} 15. g4 $1 {[%emt 0:1:36]} Rhe8 {[%emt 0:4:27]} (15... h6 16. Rhg1 )16. Rhg1 {[%emt 0:17:34]} Qb6 {[%emt 0:8:7]} 17. Kb1 {[%emt 0:4:56]} d5 {[%emt 0:8:13]} 18. g5 {[%emt 0:4:39]} Nd7 {[%emt 0:2:30]} 19. g6 {[%emt 0:1:6]} hxg6 {[%emt 0:2:23]} (19... fxg6 $11 20. fxg6 h6 )20. fxg6 $14 {[%emt 0:0:5]} f6 {[%emt 0:0:5]} 21. Nh4 {[%emt 0:0:3] Hoping for Nf5.} Nf8 {[%emt 0:2:1]} 22. Nf5 {[%emt 0:0:41]} Ne6 {[%emt 0:0:5]} 23. h4 $1 {[%emt 0:1:23]} Kb8 {[%emt 0:2:42]} 24. h5 {[%emt 0:1:33]} Rh8 {[%emt 0:3:47]} ({Black should play} 24... d4 )25. h6 $16 {[%emt 0:4:19]} gxh6 {[%emt 0:0:13]} (25... Qc7 $16 )26. g7 $18 {[%emt 0:0:3]} Rhg8 {[%emt 0:0:8]} 27. Qh5 {[%emt 0:0:3]} (27. Nxh6 Rxg7 28. Rxg7 Nxg7 $11 )Rd7 {[%emt 0:4:57]} 28. Qxh6 {[%emt 0:0:17]} (28. Nxh6 Rgxg7 (28... Nxg7 29. Qh3 $16 )29. Rxg7 Nxg7 $11 )Qd8 {[%emt 0:0:44]} 29. b4 {[%emt 0:7:24]} ({White should try} 29. Rg6 $18 )Bc8 $16 {[%emt 0:3:19]} 30. Rg6 $36 {[%emt 0:2:37][%mdl 2048] Keeping Black busy. White has more active pieces.} Rf7 {[%emt 0:1:36]} 31. d4 {[%emt 0:1:45]} (31. exd5 $16 Nf4 32. Nd4 )Nf4 {[%emt 0:6:18][%mdl 8192] Loses the game.} (31... exd4 $14 32. Nxd4 Nxd4 )32. dxe5 $18 {[%emt 0:0:5]} Bxf5 {[%emt 0:1:21]} (32... Nxg6 33. Qxg6 Rfxg7 34. Nxg7 fxe5 35. exd5 cxd5 36. Nxd5 Bb7 )33. Rxf6 {[%emt 0:0:10]} (33. Qxf4 Bxg6 34. e6+ (34. exd5 $2 {is the wrong capture.} fxe5 35. Qxe5+ Qc7 $19 )(34. exf6+ $2 Kb7 $19 )Rc7 35. exd5 cxd5 (35... Rgxg7 $2 36. dxc6 Qh8 37. Rd6 $18 )36. Rxd5 Qc8 37. Qxf6 Rcxg7 $18 (37... Rgxg7 $2 38. Rd8 $18 ))Be6 {[%emt 0:4:3][%cal Bf5e6,Be6f7,Bf7h5][%mdl 32]} 34. Rxf7 {[%emt 0:0:25]} (34. Rxe6 Nxe6 35. Qxe6 Qd7 36. exd5 Qxe6 37. dxe6 Rfxg7 $17 )Bxf7 {[%emt 0:0:3]} 35. Qxf4 {[%emt 0:0:3]} Qc7 {[%emt 0:0:15]} 36. exd5 {[%emt 0:0:38] [#] d6 would now be deadly.} cxd5 {[%emt 0:0:44]} 37. Qf6 {[%emt 0:0:44][%cal Oe5e6] aiming for e6!} d4 {[%emt 0:0:11]} 38. e6 {[%emt 0:0:46]} Bh5 {[%emt 0:0:47]} 39. Rxd4 {[%emt 0:2:25] White mates.} Rxg7 {[%emt 0:0:25]} 40. Nd5 {[%emt 0:0:32]} Rg1+ {[%emt 0:0:26]} 41. Ka2 {[%emt 0:50:4]} Qxc2 {[%emt 0:50:27]} 42. Qd8+ {[%emt 0:0:26]} Qc8 {[%emt 0:0:17]} 43. Qd6+ {[%emt 0:0:17] Black is weak on the dark squares} Kb7 {[%emt 0:0:27]} 44. Qb6+ {[%emt 0:0:4] Weighted Error Value: White=0.08 (flawless) /Black=0.45.  Loses game:     	---       	Black=1      Mistake:       	White=2     	Black=4      Inaccurate:     	White=2     	---        OK:         	White=12    	Black=12     Best:        	White=3     	Black=1      Strong:       	White=1     	---} 1-0